fUST/lending_fUST_20250621
["ID","MTS","AMOUNT","RATE_DAILY","PERIOD"]
[366849838,1750512639073,-500.0,0.00023873,2]
[366849840,1750512639084,-500.0,0.00023873,2]
[366849842,1750512639093,-500.0,0.00023873,2]
[366849844,1750512639103,-500.0,0.00023873,2]
[366849846,1750512639112,-500.61804313,0.00023873,2]
[366849848,1750512639122,-502.45613975,0.00023873,2]
[366849850,1750512639131,-500.0,0.00023873,2]
[366849852,1750512639140,-259.06106922,0.00023873,2]
[366849854,1750512639150,-500.0,0.00023873,2]
[366849856,1750512639159,-500.0,0.00023873,2]
[366849858,1750512639169,-500.0,0.00023873,2]
[366849860,1750512639178,-518.09711297,0.00023873,2]
[366849862,1750512639188,-500.0,0.00023873,2]
[366849864,1750512639198,-500.0,0.00023873,2]
[366849866,1750512639207,-500.0,0.00023873,2]
[366849868,1750512639217,-202.87194491,0.00023873,2]
[366849870,1750512639226,-500.0,0.00023873,2]
[366849872,1750512639236,-500.0,0.00023873,2]
[366849874,1750512639245,-500.0,0.00023873,2]
[366849876,1750512639255,-500.0,0.00023873,2]
[366849878,1750512639264,-500.0,0.00023873,2]
[366849880,1750512639273,-500.0,0.00023873,2]
[366849882,1750512639283,-500.46361325,0.00023873,2]
[366849884,1750512639292,-500.0,0.00023873,2]
[366849886,1750512639302,-500.0,0.00023873,2]
[366849888,1750512639311,-500.0,0.00023873,2]
[366849890,1750512639321,-1500.0,0.00023874,2]
[366849892,1750512639330,-1180.85506573,0.0002389,2]
[366849894,1750512639340,-2000.0,0.0002389,7]
[366849896,1750512639350,-2000.0,0.0002389,7]
[366849898,1750512639359,-2000.0,0.0002389,7]
[366849900,1750512639368,-2000.0,0.0002389,7]
[366849902,1750512639377,-2000.0,0.0002389,7]
[366849904,1750512639386,-2000.0,0.0002389,7]
[366849906,1750512639396,-2000.0,0.0002389,7]
[366849908,1750512639405,-2000.0,0.0002389,7]
[366849910,1750512639415,-2000.0,0.0002389,7]
[366849912,1750512639425,-2000.0,0.0002389,7]
[366849914,1750512639434,-1520.73504145,0.0002389,7]
[366849916,1750512639443,-151.0,0.0002389,7]
[366849918,1750512639453,-151.0,0.0002389,7]
[366849920,1750512639463,-151.0,0.0002389,7]
[366849922,1750512639472,-151.0,0.0002389,7]
[366849924,1750512639482,-151.0,0.0002389,7]
[366849926,1750512639492,-260.240626,0.0002389,7]
[366849928,1750512639501,-260.240626,0.0002389,7]
[366849930,1750512639511,-16093.64370388,0.000239,2]
[366849932,1750512639520,-151.0,0.000239,10]
[366849934,1750512639530,-250.0,0.00023914,2]
[366849936,1750512639539,-209.886,0.00023914,2]
[366849938,1750512639549,-204.312,0.00023914,2]
[366849940,1750512639558,-150.0,0.00023914,2]
[366849942,1750512639568,-217.082,0.00023914,2]
[366849944,1750512639577,-405.080309,0.00023915,7]
[366849946,1750512639587,-405.080309,0.00023915,7]
[366849948,1750512639598,-151.0,0.00023916,7]
[366849950,1750512639608,-151.0,0.00023916,7]
[366849952,1750512639617,-151.0,0.00023916,7]
[366849954,1750512639627,-1021.56263175,0.00023921,2]
[366849956,1750512639637,-1000.0,0.00023921,2]
[366849958,1750512639646,-500.0,0.00023921,2]
[366849960,1750512639655,-500.0,0.00023921,2]
[366849962,1750512639665,-505.64092817,0.00023921,2]
[366849964,1750512639675,-500.0,0.00023921,2]
[366849966,1750512639685,-151.0,0.00023921,7]
[366849968,1750512639695,-253.980495,0.00023921,7]
[366849970,1750512639704,-253.980495,0.00023921,7]
[366849972,1750512639713,-151.0,0.00023921,7]
[366849974,1750512639723,-151.0,0.00023933,7]
[366849976,1750512639732,-600.0,0.00023964,2]
[366849978,1750512639741,-151.0,0.00023969,7]
[366849980,1750512639751,-151.0,0.00023969,7]
[366849982,1750512639762,-171.530883,0.00023969,7]
[366849984,1750512639772,-171.530883,0.00023969,7]
[366849986,1750512639781,-151.0,0.00023969,7]
[366849988,1750512639790,-424.66,0.00024,2]
[366849990,1750512639800,-1823.63519311,0.00024,2]
[366849992,1750512639810,-206.433733,0.00024,7]
[366849995,1750512639820,-151.0,0.00024,7]
[366849997,1750512639830,-370.933338,0.00024,7]
[366849999,1750512639841,-370.933338,0.00024,7]
[366850001,1750512639850,-384.963355,0.00024,7]
[366850003,1750512639861,-384.963355,0.00024,7]
[366850005,1750512639871,-151.0,0.00024,7]
[366850007,1750512639880,-151.0,0.00024,7]
[366850009,1750512639890,-151.0,0.00024,7]
[366850011,1750512639899,-314.324611,0.00024,7]
[366850013,1750512639909,-314.324611,0.00024,7]
[366850015,1750512639918,-305.963578,0.00024,7]
[366850017,1750512639928,-305.963578,0.00024,7]
[366850019,1750512639938,-276.762736,0.00024,7]
[366850021,1750512639948,-276.762736,0.00024,7]
[366850023,1750512639957,-151.0,0.00024,5]
[366850025,1750512639968,-836.41202323,0.00024,7]
[366850027,1750512639977,-230.10342898,0.00024,7]
[366850029,1750512639986,-160.0,0.00024,7]
[366850039,1750512640070,-190525.18671226,0.00024,2]
[366850041,1750512640080,-424.93363889,0.00024,7]
[366850043,1750512640090,-151.0,0.00024,10]
[366850045,1750512640099,-1418.55103356,0.00024024,2]
[366850047,1750512640109,-215.0738,0.00024025,2]
[366850049,1750512640119,-4159.81261642,0.00024077,2]
[366850052,1750512640128,-12459.34982554,0.00024081,2]
[366850055,1750512640138,-1061.91,0.000241,7]
[366850058,1750512640147,-500.0,0.00024109,2]
[366850060,1750512640157,-400.0,0.00024124,2]
[366850062,1750512640166,-219.95974584,0.00024143,2]
[366850064,1750512640176,-3544.9,0.000242,7]
[366850066,1750512640185,-151.0,0.000242,7]
[366850068,1750512640195,-405.080309,0.000242,7]
[366850070,1750512640204,-405.080309,0.000242,7]
[366850072,1750512640213,-151.0,0.000242,10]
[366850074,1750512640223,-253.980495,0.00024207,7]
[366850076,1750512640233,-253.980495,0.00024207,7]
[366850078,1750512640242,-151.0,0.0002421,7]
[366850080,1750512640252,-151.0,0.0002421,7]
[366850082,1750512640261,-151.0,0.0002421,7]
[366850084,1750512640271,-151.0,0.0002421,7]
[366850086,1750512640281,-260.240626,0.0002421,7]
[366850088,1750512640290,-260.240626,0.0002421,7]
[366850089,1750512640300,-151.0,0.00024211,7]
[366850090,1750512640310,-600.0,0.00024214,2]
[366850091,1750512640319,-500.0,0.00024215,2]
[366850092,1750512640328,-156.17841033,0.00024221,4]
[366850093,1750512640338,-156.17841033,0.00024221,4]
[366850094,1750512640348,-156.17,0.00024221,4]
[366850095,1750512640358,-156.17841033,0.00024221,4]
[366850096,1750512640368,-156.17841033,0.00024221,4]
[366850097,1750512640378,-156.17841033,0.00024221,4]
[366850098,1750512640388,-156.17841033,0.00024221,4]
[366850099,1750512640397,-156.17841033,0.00024221,4]
[366850100,1750512640407,-164.57849609,0.00024221,4]
[366850101,1750512640417,-164.57849609,0.00024221,4]
[366850102,1750512640427,-164.57849609,0.00024221,4]
[366850103,1750512640438,-164.57849609,0.00024221,4]
[366850104,1750512640448,-164.57849609,0.00024221,4]
[366850105,1750512640458,-164.57849609,0.00024221,4]
[366850106,1750512640468,-164.57849609,0.00024221,4]
[366850107,1750512640478,-164.57849609,0.00024221,4]
[366850108,1750512640487,-164.57,0.00024221,4]
[366850109,1750512640498,-172.8074209,0.00024221,4]
[366850110,1750512640507,-172.8074209,0.00024221,4]
[366850111,1750512640517,-172.8074209,0.00024221,4]
[366850112,1750512640528,-172.8074209,0.00024221,4]
[366850113,1750512640537,-172.8074209,0.00024221,4]
[366850114,1750512640546,-172.8074209,0.00024221,4]
[366850115,1750512640556,-172.8074209,0.00024221,4]
[366850117,1750512640566,-172.8074209,0.00024221,4]
[366850119,1750512640575,-172.8074209,0.00024221,4]
[366850121,1750512640584,-172.8074209,0.00024221,4]
[366850123,1750512640594,-172.8074209,0.00024221,4]
[366850125,1750512640603,-172.8074209,0.00024221,4]
[366850127,1750512640615,-172.8074209,0.00024221,4]
[366850129,1750512640625,-172.8074209,0.00024221,4]
[366850131,1750512640634,-172.8074209,0.00024221,4]
[366850133,1750512640644,-172.8074209,0.00024221,4]
[366850135,1750512640653,-172.8074209,0.00024221,4]
[366850137,1750512640663,-247.78601524,0.00024221,4]
[366850138,1750512640672,-247.78601524,0.00024221,4]
[366850141,1750512640683,-247.78601524,0.00024221,4]
[366850143,1750512640692,-247.78601524,0.00024221,4]
[366850144,1750512640701,-247.78601524,0.00024221,4]
[366850146,1750512640710,-247.78601524,0.00024221,4]
[366850148,1750512640720,-247.78601524,0.00024221,4]
[366850150,1750512640730,-247.78601524,0.00024221,4]
[366850152,1750512640739,-247.78601524,0.00024221,4]
[366850154,1750512640748,-247.78601524,0.00024221,4]
[366850156,1750512640757,-247.78601524,0.00024221,4]
[366850158,1750512640767,-247.78601524,0.00024221,4]
[366850160,1750512640776,-247.78601524,0.00024221,4]
[366850162,1750512640785,-247.78601524,0.00024221,4]
[366850164,1750512640794,-247.78601524,0.00024221,4]
[366850166,1750512640804,-247.78601524,0.00024221,4]
[366850168,1750512640814,-247.78601524,0.00024221,4]
[366850170,1750512640823,-247.78601524,0.00024221,4]
[366850172,1750512640833,-247.78601524,0.00024221,4]
[366850174,1750512640843,-247.78,0.00024221,4]
[366850176,1750512640853,-578.16736888,0.00024221,4]
[366850178,1750512640864,-578.16736888,0.00024221,4]
[366850180,1750512640874,-578.16736888,0.00024221,4]
[366850182,1750512640883,-578.16736888,0.00024221,4]
[366850184,1750512640895,-578.16736888,0.00024221,4]
[366850186,1750512640906,-578.16736888,0.00024221,4]
[366850188,1750512640915,-578.16736888,0.00024221,4]
[366850190,1750512640925,-578.16736888,0.00024221,4]
[366850192,1750512640934,-578.16736888,0.00024221,4]
[366850194,1750512640945,-578.16736888,0.00024221,4]
[366850196,1750512640955,-578.16736888,0.00024221,4]
[366850198,1750512640964,-578.16736888,0.00024221,4]
[366850200,1750512640975,-578.16736888,0.00024221,4]
[366850202,1750512640985,-578.16736888,0.00024221,4]
[366850204,1750512640994,-578.16736888,0.00024221,4]
[366850206,1750512641005,-578.16736888,0.00024221,4]
[366850208,1750512641014,-578.16736888,0.00024221,4]
[366850210,1750512641023,-156.17841033,0.00024229,4]
[366850212,1750512641033,-151.0,0.00024245,7]
[366850214,1750512641042,-151.0,0.00024245,7]
[366850216,1750512641052,-1562.696918,0.00024277,2]
[366850218,1750512641061,-500.0,0.00024293,2]
[366850220,1750512641070,-2000.0,0.000243,2]
[366850222,1750512641080,-2000.0,0.000243,2]
[366850224,1750512641089,-200.0,0.000243,10]
[366850226,1750512641099,-151.0,0.000243,9]
[366850228,1750512641109,-1200.0,0.00024321,2]
[366850230,1750512641118,-1000.0,0.00024321,2]
[366850232,1750512641127,-1000.0,0.00024321,2]
[366850234,1750512641137,-1000.0,0.00024321,2]
[366850236,1750512641146,-1000.0,0.00024321,2]
[366850238,1750512641155,-487.07405773,0.00024321,2]
[366850240,1750512641165,-503.29104018,0.00024321,2]
[366850242,1750512641174,-1000.0,0.00024321,2]
[366850244,1750512641184,-504.6434671,0.00024321,2]
[366850246,1750512641193,-340.84,0.00024332,3]
[366850248,1750512641203,-681.7,0.00024333,3]
[366850250,1750512641212,-172.8074209,0.00024334,4]
[366850252,1750512641221,-578.16736888,0.00024334,4]
[366850254,1750512641231,-160.0,0.00024347,2]
[366850256,1750512641240,-1742.99748314,0.00024348,2]
[366850258,1750512641250,-1363.38,0.0002435,3]
[366850260,1750512641259,-22380.83532246,0.00024363,4]
[366850262,1750512641268,-151.0,0.00024363,7]
[366850264,1750512641277,-151.0,0.00024363,7]
[366850266,1750512641287,-151.0,0.00024363,7]
[366850268,1750512641296,-154.783577,0.00024363,7]
[366850270,1750512641305,-151.0,0.00024363,7]
[366850272,1750512641315,-384.963355,0.00024363,7]
[366850274,1750512641324,-384.963355,0.00024363,7]
[366850276,1750512641334,-171.530883,0.00024363,7]
[366850278,1750512641343,-171.530883,0.00024363,7]
[366850280,1750512641352,-151.0,0.00024363,7]
[366850282,1750512641363,-151.0,0.00024363,7]
[366850284,1750512641372,-314.324611,0.00024363,7]
[366850286,1750512641381,-314.324611,0.00024363,7]
[366850288,1750512641391,-305.963578,0.00024363,7]
[366850290,1750512641401,-305.963578,0.00024363,7]
[366850292,1750512641411,-276.762736,0.00024363,7]
[366850294,1750512641420,-276.762736,0.00024363,7]
[366850296,1750512641429,-405.080309,0.00024363,7]
[366850298,1750512641439,-405.080309,0.00024363,7]
[366850300,1750512641449,-151.0,0.00024363,7]
[366850302,1750512641458,-260.240626,0.00024363,7]
[366850304,1750512641467,-260.240626,0.00024363,7]
[366850306,1750512641477,-150.0,0.00024373,2]
[366850308,1750512641486,-151.0,0.00024383,7]
[366850310,1750512641495,-151.0,0.00024383,7]
[366850312,1750512641504,-67543.93,0.000244,2]
[366850314,1750512641514,-151.0,0.000244,7]
[366850316,1750512641524,-166.741829,0.000244,7]
[366850318,1750512641533,-151.0,0.000244,7]
[366850320,1750512641542,-179.034969,0.000244,7]
[366850321,1750512641551,-370.933338,0.000244,7]
[366850323,1750512641561,-370.933338,0.000244,7]
[366850325,1750512641570,-384.963355,0.000244,7]
[366850327,1750512641579,-384.963355,0.000244,7]
[366850329,1750512641588,-171.530883,0.000244,7]
[366850331,1750512641598,-171.530883,0.000244,7]
[366850333,1750512641608,-181.145176,0.000244,7]
[366850335,1750512641617,-253.980495,0.000244,7]
[366850337,1750512641626,-253.980495,0.000244,7]
[366850339,1750512641636,-151.0,0.000244,7]
[366850341,1750512641646,-151.0,0.000244,7]
[366850351,1750512641724,-151.0,0.000244,7]
[366850353,1750512641736,-151.0,0.000244,7]
[366850355,1750512641746,-314.324611,0.000244,7]
[366850357,1750512641756,-314.324611,0.000244,7]
[366850359,1750512641765,-305.963578,0.000244,7]
[366850361,1750512641775,-305.963578,0.000244,7]
[366850363,1750512641784,-276.762736,0.000244,7]
[366850365,1750512641793,-276.762736,0.000244,7]
[366850367,1750512641803,-405.080309,0.000244,7]
[366850369,1750512641813,-405.080309,0.000244,7]
[366850371,1750512641824,-151.0,0.000244,7]
[366850373,1750512641833,-167.740206,0.000244,7]
[366850375,1750512641843,-151.0,0.000244,7]
[366850377,1750512641852,-151.0,0.000244,7]
[366850379,1750512641862,-260.240626,0.000244,7]
[366850381,1750512641872,-260.240626,0.000244,7]
[366850383,1750512641882,-500.74970608,0.00024421,2]
[366850385,1750512641893,-1000.0,0.00024421,2]
[366850387,1750512641905,-609.72627706,0.00024421,2]
[366850389,1750512641915,-502.14690165,0.00024421,2]
[366850391,1750512641925,-1000.0,0.00024421,2]
[366850393,1750512641934,-1000.0,0.00024421,2]
[366850395,1750512641944,-1000.0,0.00024421,2]
[366850397,1750512641953,-1016.76,0.00024421,2]
[366850399,1750512641962,-1002.04862943,0.00024421,2]
[366850401,1750512641971,-1000.0,0.00024421,2]
[366850403,1750512641981,-500.0,0.00024421,2]
[366850405,1750512641990,-1013.2747489,0.00024421,2]
[366850407,1750512641999,-1000.0,0.00024421,2]
[366850409,1750512642009,-1000.0,0.00024421,2]
[366850411,1750512642018,-503.41506022,0.00024421,2]
[366850413,1750512642028,-1000.0,0.00024421,2]
[366850415,1750512642037,-502.49866662,0.00024421,2]
[366850417,1750512642047,-510.87832922,0.00024421,2]
[366850420,1750512642057,-1001.09327739,0.00024421,2]
[366850421,1750512642066,-1144.27510268,0.00024421,2]
[366850424,1750512642076,-576.07598178,0.00024421,2]
[366850425,1750512642085,-222.81406767,0.00024421,2]
[366850427,1750512642094,-1000.0,0.00024421,2]
[366850429,1750512642104,-500.98790293,0.00024421,2]
[366850431,1750512642113,-975.97840655,0.00024421,2]
[366850434,1750512642123,-1000.0,0.00024421,2]
[366850436,1750512642133,-943.78255046,0.00024421,2]
[366850438,1750512642142,-500.46768005,0.00024421,2]
[366850440,1750512642152,-501.47250456,0.00024421,2]
[366850442,1750512642161,-1000.0,0.00024421,2]
[366850444,1750512642171,-1000.0,0.00024421,2]
[366850446,1750512642180,-1000.0,0.00024421,2]
[366850448,1750512642189,-2000.0,0.00024422,2]
[366850450,1750512642199,-172.8074209,0.00024457,4]
[366850452,1750512642208,-578.16736888,0.00024457,4]
[366850454,1750512642217,-600.0,0.00024464,2]
[366850455,1750512642227,-255.0,0.00024487,2]
[366850458,1750512642237,-603.0,0.00024488,2]
[366850459,1750512642246,-151.0,0.000245,7]
[366850461,1750512642255,-151.0,0.000245,5]
[366850463,1750512642264,-967.86075019,0.0002453,2]
[366850465,1750512642274,-603.0,0.00024552,2]
[366850468,1750512642285,-168.55803718,0.0002458,2]
[366850470,1750512642295,-156.17,0.0002458,4]
[366850472,1750512642305,-172.8,0.0002458,4]
[366850474,1750512642315,-578.16,0.0002458,4]
[366850476,1750512642325,-500.0,0.00024612,2]
[366850478,1750512642335,-219.95974584,0.00024631,2]
[366850480,1750512642345,-207.93432221,0.00024649,2]
[366850482,1750512642354,-200.0,0.00024649,2]
[366850484,1750512642365,-138480.83937089,0.0002465,2]
[366850486,1750512642375,-300.47743034,0.0002465,2]
[366850488,1750512642385,-151.0,0.0002465,7]
[366850490,1750512642394,-151.0,0.0002465,7]
[366850492,1750512642403,-370.933338,0.0002465,7]
[366850494,1750512642413,-370.933338,0.0002465,7]
[366850495,1750512642423,-384.963355,0.0002465,7]
[366850497,1750512642432,-384.963355,0.0002465,7]
[366850499,1750512642442,-171.530883,0.0002465,7]
[366850501,1750512642452,-171.530883,0.0002465,7]
[366850503,1750512642462,-253.980495,0.0002465,7]
[366850506,1750512642473,-253.980495,0.0002465,7]
[366850508,1750512642484,-151.0,0.0002465,7]
[366850510,1750512642495,-151.0,0.0002465,7]
[366850512,1750512642505,-151.0,0.0002465,7]
[366850514,1750512642514,-151.0,0.0002465,7]
[366850516,1750512642524,-314.324611,0.0002465,7]
[366850518,1750512642534,-314.324611,0.0002465,7]
[366850520,1750512642543,-305.963578,0.0002465,7]
[366850522,1750512642553,-305.963578,0.0002465,7]
[366850524,1750512642563,-276.762736,0.0002465,7]
[366850526,1750512642572,-276.762736,0.0002465,7]
[366850528,1750512642582,-405.080309,0.0002465,7]
[366850530,1750512642592,-405.080305,0.0002465,7]
[366850532,1750512642603,-151.0,0.0002465,7]
[366850534,1750512642613,-151.0,0.0002465,7]
[366850536,1750512642623,-151.0,0.0002465,7]
[366850538,1750512642632,-260.240626,0.0002465,7]
[366850540,1750512642642,-260.240624,0.0002465,7]
[366850542,1750512642652,-460.0,0.00024657,2]
[366850544,1750512642663,-460.0,0.00024657,2]
[366850546,1750512642672,-460.0,0.00024657,2]
[366850548,1750512642682,-460.0,0.00024657,2]
[366850550,1750512642693,-460.0,0.00024657,2]
[366850552,1750512642703,-460.0,0.00024657,2]
[366850554,1750512642713,-460.0,0.00024657,2]
[366850556,1750512642723,-460.0,0.00024657,2]
[366850558,1750512642733,-487.38225264,0.00024657,2]
[366850560,1750512642742,-460.0,0.00024657,3]
[366850562,1750512642752,-460.37035071,0.00024657,2]
[366850564,1750512642761,-460.0,0.00024657,3]
[366850566,1750512642771,-460.0,0.00024657,3]
[366850568,1750512642780,-460.0,0.00024657,3]
[366850570,1750512642790,-460.0,0.00024657,3]
[366850573,1750512642800,-460.0,0.00024657,3]
[366850575,1750512642810,-460.0,0.00024657,3]
[366850577,1750512642820,-460.0,0.00024657,3]
[366850578,1750512642829,-460.0,0.00024657,3]
[366850580,1750512642839,-460.0,0.00024657,3]
[366850584,1750512642850,-460.0,0.00024657,3]
[366850585,1750512642860,-460.0,0.00024657,3]
[366850588,1750512642870,-480.05750622,0.00024657,3]
[366850590,1750512642880,-300.0,0.00024657,4]
[366850592,1750512642890,-300.0,0.00024657,4]
[366850594,1750512642903,-274.53411993,0.00024657,4]
[366850596,1750512642913,-490.6215398,0.00024657,3]
[366850598,1750512642922,-460.0,0.00024657,3]
[366850600,1750512642933,-434.58,0.00024657,3]
[366850602,1750512642943,-467.66178195,0.00024657,3]
[366850604,1750512642952,-460.0,0.00024657,3]
[366850606,1750512642962,-583.05103659,0.00024657,3]
[366850608,1750512642974,-519.7,0.00024657,3]
[366850610,1750512642983,-460.0,0.00024657,3]
[366850612,1750512642992,-460.0,0.00024657,3]
[366850615,1750512643001,-460.0,0.00024657,3]
[366850618,1750512643010,-460.0,0.00024657,3]
[366850621,1750512643020,-460.0,0.00024657,3]
[366850624,1750512643030,-460.0,0.00024657,3]
[366850627,1750512643039,-460.0,0.00024657,3]
[366850629,1750512643048,-601.08974831,0.00024657,3]
[366850631,1750512643058,-460.0,0.00024657,3]
[366850633,1750512643067,-460.0,0.00024657,3]
[366850635,1750512643078,-460.0,0.00024657,3]
[366850637,1750512643088,-460.0,0.00024657,3]
[366850639,1750512643098,-356.9695888,0.00024657,3]
[366850642,1750512643107,-460.0,0.00024657,3]
[366850644,1750512643118,-460.0,0.00024657,3]
[366850646,1750512643128,-199.06205243,0.00024657,3]
[366850648,1750512643138,-460.0,0.00024657,3]
[366850650,1750512643148,-460.0,0.00024657,3]
[366850652,1750512643158,-460.0,0.00024657,3]
[366850654,1750512643168,-460.0,0.00024657,3]
[366850656,1750512643178,-460.0,0.00024657,3]
[366850658,1750512643188,-460.0,0.00024657,2]
[366850660,1750512643198,-460.0,0.00024657,2]
[366850668,1750512643208,-460.0,0.00024657,2]
[366850670,1750512643282,-460.0,0.00024657,2]
[366850672,1750512643292,-460.0,0.00024657,2]
[366850675,1750512643303,-460.0,0.00024657,2]
[366850677,1750512643313,-460.0,0.00024657,2]
[366850679,1750512643323,-460.0,0.00024657,2]
[366850681,1750512643333,-460.0,0.00024657,2]
[366850683,1750512643342,-460.0,0.00024657,2]
[366850685,1750512643353,-460.0,0.00024657,2]
[366850687,1750512643364,-460.0,0.00024657,2]
[366850689,1750512643374,-460.0,0.00024657,2]
[366850691,1750512643384,-460.0,0.00024657,2]
[366850693,1750512643394,-460.0,0.00024657,2]
[366850695,1750512643403,-460.0,0.00024657,2]
[366850697,1750512643413,-460.0,0.00024657,2]
[366850699,1750512643423,-460.0,0.00024657,2]
[366850701,1750512643433,-460.0,0.00024657,2]
[366850703,1750512643443,-460.0,0.00024657,2]
[366850705,1750512643453,-460.0,0.00024657,2]
[366850707,1750512643463,-460.0,0.00024657,2]
[366850709,1750512643473,-460.0,0.00024657,2]
[366850711,1750512643483,-379.39,0.00024657,2]
[366850713,1750512643493,-460.0,0.00024657,2]
[366850715,1750512643502,-460.0,0.00024657,2]
[366850717,1750512643513,-1000.0,0.00024658,2]
[366850719,1750512643523,-1000.0,0.00024658,2]
[366850721,1750512643533,-1000.0,0.00024658,2]
[366850723,1750512643542,-1000.0,0.00024658,2]
[366850725,1750512643552,-1000.0,0.00024658,2]
[366850727,1750512643562,-1000.0,0.00024658,2]
[366850729,1750512643572,-1000.0,0.00024658,2]
[366850731,1750512643582,-1000.0,0.00024658,2]
[366850733,1750512643591,-1000.0,0.00024658,2]
[366850735,1750512643601,-1000.0,0.00024658,2]
[366850737,1750512643610,-1000.0,0.00024658,2]
[366850739,1750512643622,-1000.0,0.00024658,2]
[366850741,1750512643632,-1000.0,0.00024658,2]
[366850743,1750512643641,-1000.0,0.00024658,2]
[366850745,1750512643651,-1000.0,0.00024658,2]
[366850748,1750512643662,-380.0,0.00024658,2]
[366850750,1750512643671,-1000.0,0.00024658,2]
[366850752,1750512643682,-1000.0,0.00024658,2]
[366850754,1750512643691,-463.70726757,0.00024658,2]
[366850756,1750512643701,-1000.0,0.00024658,2]
[366850758,1750512643711,-1000.0,0.00024658,2]
[366850760,1750512643721,-200.0,0.00024658,2]
[366850762,1750512643732,-1000.0,0.00024658,2]
[366850764,1750512643742,-151.0,0.00024658,7]
[366850766,1750512643752,-500.0,0.00024658,2]
[366850768,1750512643762,-151.0,0.00024666,7]
[366850770,1750512643772,-276.631501,0.00024666,7]
[366850772,1750512643781,-370.933338,0.00024666,7]
[366850774,1750512643790,-370.933338,0.00024666,7]
[366850776,1750512643801,-151.0,0.00024666,7]
[366850778,1750512643810,-150.0,0.00024673,2]
[366850780,1750512643820,-203477.64054981,0.0002468,2]
[366850782,1750512643830,-151.0,0.0002468,7]
[366850784,1750512643840,-370.933338,0.0002468,7]
[366850786,1750512643849,-370.933338,0.0002468,7]
[366850788,1750512643859,-384.963355,0.0002468,7]
[366850790,1750512643869,-384.963355,0.0002468,7]
[366850792,1750512643878,-171.530883,0.0002468,7]
[366850794,1750512643888,-171.530883,0.0002468,7]
[366850796,1750512643898,-253.980495,0.0002468,7]
[366850798,1750512643907,-253.980493,0.0002468,7]
[366850801,1750512643917,-151.0,0.0002468,7]
[366850804,1750512643926,-151.0,0.0002468,7]
[366850807,1750512643936,-151.0,0.0002468,7]
[366850809,1750512643946,-151.0,0.0002468,7]
[366850811,1750512643956,-314.324611,0.0002468,7]
[366850813,1750512643966,-314.324611,0.0002468,7]
[366850816,1750512643977,-305.963578,0.0002468,7]
[366850818,1750512643994,-305.963578,0.0002468,7]
[366850821,1750512644010,-276.762736,0.0002468,7]
[366850824,1750512644024,-276.762736,0.0002468,7]
[366850826,1750512644038,-500.0,0.00024685,2]
[366850829,1750512644054,-160.0,0.000247,3]
[366850831,1750512644068,-7500.51587742,0.000247,2]
[366850834,1750512644082,-151.0,0.00024707,7]
[366850836,1750512644096,-370.933338,0.00024707,7]
[366850839,1750512644112,-370.933338,0.00024707,7]
[366850841,1750512644125,-384.963355,0.00024707,7]
[366850844,1750512644139,-384.963359,0.00024707,7]
[366850846,1750512644152,-171.530883,0.00024707,7]
[366850849,1750512644167,-171.530881,0.00024707,7]
[366850851,1750512644181,-151.0,0.00024707,7]
[366850854,1750512644194,-158.586032,0.00024707,7]
[366850856,1750512644206,-151.0,0.00024707,7]